[Event "FIDE Grand Swiss 2023"]
[Site "Villa Marina, Douglas, Isle of Man"]
[Date "2023.10.29"]
[Round "5.6"]
[White "Najer, Evgeniy"]
[Black "Vidit, Santosh Gujrathi"]
[Result "1/2-1/2"]
[WhiteElo "2648"]
[BlackElo "2716"]
[EventDate "2023.10.25"]
[ECO "C65"]
[PlyCount "78"]
[BlackFideId "5029465"]
[TimeControl "40/100 + 20/50 + 15 + 30s/move"]
[WhiteFideId "4118987"]

1.e4 {[%clk 01:40:50] [%emt 00:00:09]} 1...e5 {[%clk 01:40:09] [%emt 00:00:52]} 
2.Nf3 {[%clk 01:41:11] [%emt 00:00:09]} 2...Nc6 {[%clk 01:40:19] [%emt
00:00:19]} 3.Bb5 {[%clk 01:41:33] [%emt 00:00:08]} 3...Nf6 {[%clk 01:40:15]
[%emt 00:00:35]} 4.d3 {[%clk 01:41:38] [%emt 00:00:25]} 4...Bc5 {[%clk 01:40:20]
[%emt 00:00:24]} 5.c3 {[%clk 01:42:01] [%emt 00:00:08]} 5...O-O {[%clk 01:40:04]
[%emt 00:00:46]} 6.O-O {[%clk 01:42:15] [%emt 00:00:16]} 6...d5 {[%clk 01:39:48]
[%emt 00:00:46]} 7.exd5 {[%clk 01:42:24] [%emt 00:00:21]} 7...Qxd5 {[%clk
01:39:56] [%emt 00:00:22]} 8.Bc4 {[%clk 01:42:31] [%emt 00:00:23]} 8...Qd8 
{[%clk 01:39:51] [%emt 00:00:35]} 9.b4 {[%clk 01:42:26] [%emt 00:00:35]} 
9...Bd6 {[%clk 01:39:17] [%emt 00:01:03]} 10.Re1 {[%clk 01:41:05] [%emt
00:01:52]} 10...h6 {[%clk 01:37:22] [%emt 00:02:24]} 11.Nbd2 {[%clk 01:40:11]
[%emt 00:01:23]} 11...Re8 {[%clk 01:34:19] [%emt 00:03:34]} 12.a4 {[%clk
01:38:38] [%emt 00:02:04]} 12...a6 {[%clk 01:32:57] [%emt 00:01:51]} 13.Bb2 
{[%clk 01:38:30] [%emt 00:00:38]} 13...Bf5 {[%clk 01:23:19] [%emt 00:10:09]} 
14.Qb3 {[%clk 01:37:29] [%emt 00:01:31]} 14...Qd7 {[%clk 01:21:41] [%emt
00:02:08]} 15.Ne4 {[%clk 01:35:49] [%emt 00:02:09]} 15...Nxe4 {[%clk 01:20:16]
[%emt 00:01:56]} 16.dxe4 {[%clk 01:36:14] [%emt 00:00:05]} 16...Be6 {[%clk
01:19:56] [%emt 00:00:50]} 17.Red1 {[%clk 01:31:49] [%emt 00:04:55]} 17...Rab8 
{[%clk 01:02:56] [%emt 00:17:30]} 18.Bc1 {[%clk 01:22:34] [%emt 00:09:45]} 
18...b5 {[%clk 00:49:24] [%emt 00:14:02]} 19.Bxe6 {[%clk 01:21:53] [%emt
00:01:11]} 19...Rxe6 {[%clk 00:49:05] [%emt 00:00:49]} 20.Be3 {[%clk 01:20:47]
[%emt 00:01:36]} 20...Ne7 {[%clk 00:43:44] [%emt 00:05:51]} 21.Ne1 {[%clk
01:14:39] [%emt 00:06:38]} 21...Qc8 {[%clk 00:33:46] [%emt 00:10:28]} 22.Nd3 
{[%clk 00:40:18] [%emt 00:34:51]} 22...Rg6 {[%clk 00:34:01] [%emt 00:00:15]} 
23.g3 {[%clk 00:39:46] [%emt 00:01:03]} 23...Qg4 {[%clk 00:29:33] [%emt
00:04:57]} 24.Nc5 {[%clk 00:39:04] [%emt 00:01:12]} 24...Bxc5 {[%clk 00:24:32]
[%emt 00:05:31]} 25.Bxc5 {[%clk 00:38:59] [%emt 00:00:35]} 25...Nc6 {[%clk
00:24:54] [%emt 00:00:08]} 26.Re1 {[%clk 00:33:30] [%emt 00:06:00]} 26...Nd8 
{[%clk 00:22:36] [%emt 00:02:47]} 27.Ba7 {[%clk 00:25:13] [%emt 00:08:46]} 
27...Rb7 {[%clk 00:21:47] [%emt 00:01:20]} 28.Be3 {[%clk 00:22:29] [%emt
00:03:14]} 28...Rd6 {[%clk 00:17:22] [%emt 00:04:55]} 29.Bc5 {[%clk 00:20:26]
[%emt 00:02:33]} 29...Rd7 {[%clk 00:15:28] [%emt 00:02:23]} 30.axb5 {[%clk
00:19:04] [%emt 00:01:53]} 30...axb5 {[%clk 00:15:39] [%emt 00:00:20]} 31.Qc2 
{[%clk 00:18:39] [%emt 00:00:54]} 31...Ne6 {[%clk 00:14:44] [%emt 00:01:25]} 
32.Qe2 {[%clk 00:15:48] [%emt 00:03:21]} 32...Qxe2 {[%clk 00:12:24] [%emt
00:02:50]} 33.Rxe2 {[%clk 00:16:16] [%emt 00:00:02]} 33...Rd3 {[%clk 00:11:32]
[%emt 00:01:22]} 34.Re3 {[%clk 00:13:38] [%emt 00:03:07]} 34...Rd2 {[%clk
00:09:36] [%emt 00:02:27]} 35.Ra8+ {[%clk 00:12:49] [%emt 00:01:20]} 35...Kh7 
{[%clk 00:10:03] [%emt 00:00:02]} 36.h4 {[%clk 00:11:27] [%emt 00:01:51]} 
36...h5 {[%clk 00:06:42] [%emt 00:03:51]} 37.Kf1 {[%clk 00:08:45] [%emt
00:03:12]} 37...Kg6 {[%clk 00:06:20] [%emt 00:00:54]} 38.Ra6 {[%clk 00:07:55]
[%emt 00:01:19]} 38...Rb8 {[%clk 00:05:04] [%emt 00:01:46]} 39.Re2 {[%clk
00:07:17] [%emt 00:01:07]} 39...Rd1+ {[%clk 00:04:03] [%emt 00:01:31]} 1/2-1/2

[Event "FIDE Grand Swiss 2023"]
[Site "Villa Marina, Douglas, Isle of Man"]
[Date "2023.10.29"]
[Round "5.7"]
[White "Erigaisi, Arjun"]
[Black "Jumabayev, Rinat"]
[Result "1-0"]
[WhiteElo "2712"]
[BlackElo "2585"]
[EventDate "2023.10.25"]
[ECO "C65"]
[PlyCount "135"]
[BlackFideId "13702661"]
[TimeControl "40/100 + 20/50 + 15 + 30s/move"]
[WhiteFideId "35009192"]

1.e4 {[%clk 01:40:55] [%emt 00:00:04]} 1...e5 {[%clk 01:40:13] [%emt 00:00:48]} 
2.Nf3 {[%clk 01:41:17] [%emt 00:00:08]} 2...Nc6 {[%clk 01:40:38] [%emt
00:00:05]} 3.Bb5 {[%clk 01:41:42] [%emt 00:00:05]} 3...Nf6 {[%clk 01:40:47]
[%emt 00:00:20]} 4.d3 {[%clk 01:41:44] [%emt 00:00:28]} 4...Bc5 {[%clk 01:35:25]
[%emt 00:05:52]} 5.c3 {[%clk 01:41:52] [%emt 00:00:22]} 5...d5 {[%clk 01:24:55]
[%emt 00:11:01]} 6.exd5 {[%clk 01:41:52] [%emt 00:00:30]} 6...Qxd5 {[%clk
01:22:13] [%emt 00:03:12]} 7.Bc4 {[%clk 01:42:17] [%emt 00:00:06]} 7...Qd6 
{[%clk 01:21:09] [%emt 00:01:34]} 8.b4 {[%clk 01:41:54] [%emt 00:00:53]} 
8...Bb6 {[%clk 01:21:36] [%emt 00:00:03]} 9.Nbd2 {[%clk 01:42:19] [%emt
00:00:05]} 9...Bg4 {[%clk 01:05:08] [%emt 00:16:57]} 10.a4 {[%clk 01:30:36]
[%emt 00:12:14]} 10...e4 {[%clk 00:49:19] [%emt 00:16:19]} 11.dxe4 {[%clk
01:18:33] [%emt 00:12:33]} 11...a5 {[%clk 00:49:37] [%emt 00:00:12]} 12.bxa5 
{[%clk 01:10:29] [%emt 00:08:34]} 12...Nxa5 {[%clk 00:34:14] [%emt 00:15:54]} 
13.Bb5+ {[%clk 00:43:27] [%emt 00:27:32]} 13...c6 {[%clk 00:31:49] [%emt
00:02:54]} 14.Be2 {[%clk 00:43:51] [%emt 00:00:06]} 14...O-O-O {[%clk 00:27:50]
[%emt 00:04:29]} 15.O-O {[%clk 00:43:14] [%emt 00:01:07]} 15...Rhe8 {[%clk
00:22:19] [%emt 00:06:01]} 16.e5 {[%clk 00:37:28] [%emt 00:06:17]} 16...Qe6 
{[%clk 00:18:59] [%emt 00:03:50]} 17.exf6 {[%clk 00:31:05] [%emt 00:06:53]} 
17...Qxe2 {[%clk 00:19:22] [%emt 00:00:08]} 18.Qxe2 {[%clk 00:31:31] [%emt
00:00:04]} 18...Rxe2 {[%clk 00:19:46] [%emt 00:00:05]} 19.fxg7 {[%clk 00:31:58]
[%emt 00:00:04]} 19...Rg8 {[%clk 00:07:16] [%emt 00:13:00]} 20.Nd4 {[%clk
00:32:12] [%emt 00:00:16]} 20...Ree8 {[%clk 00:02:45] [%emt 00:05:00]} 21.Ba3 
{[%clk 00:28:50] [%emt 00:03:53]} 21...Rxg7 {[%clk 00:02:46] [%emt 00:00:29]} 
22.Rfe1 {[%clk 00:29:12] [%emt 00:00:07]} 22...Rd8 {[%clk 00:00:44] [%emt
00:02:32]} 23.Rab1 {[%clk 00:19:56] [%emt 00:09:46]} 23...Bc7 {[%clk 00:00:37]
[%emt 00:00:38]} 24.Re7 {[%clk 00:18:23] [%emt 00:02:02]} 24...Bh3 {[%clk
00:00:53] [%emt 00:00:13]} 25.g3 {[%clk 00:18:45] [%emt 00:00:08]} 25...b6 
{[%clk 00:00:47] [%emt 00:00:37]} 26.Bb4 {[%clk 00:16:17] [%emt 00:02:58]} 
26...Nb7 {[%clk 00:00:36] [%emt 00:00:41]} 27.Nc4 {[%clk 00:16:03] [%emt
00:00:44]} 27...Rg6 {[%clk 00:00:31] [%emt 00:00:35]} 28.Rxf7 {[%clk 00:15:20]
[%emt 00:01:13]} 28...c5 {[%clk 00:00:40] [%emt 00:00:21]} 29.Nb5 {[%clk
00:15:33] [%emt 00:00:16]} 29...Rd7 {[%clk 00:00:39] [%emt 00:00:31]} 30.Rxd7 
{[%clk 00:15:20] [%emt 00:00:43]} 30...Bxd7 {[%clk 00:00:42] [%emt 00:00:27]} 
31.Ba3 {[%clk 00:15:33] [%emt 00:00:18]} 31...Be6 {[%clk 00:00:36] [%emt
00:00:36]} 32.Ne3 {[%clk 00:11:53] [%emt 00:04:10]} 32...Bf4 {[%clk 00:00:57]
[%emt 00:00:09]} 33.Bc1 {[%clk 00:11:36] [%emt 00:00:46]} 33...Na5 {[%clk
00:01:00] [%emt 00:00:27]} 34.Ng2 {[%clk 00:10:13] [%emt 00:01:53]} 34...Bb8 
{[%clk 00:00:37] [%emt 00:00:54]} 35.Bf4 {[%clk 00:08:57] [%emt 00:01:46]} 
35...Bb3 {[%clk 00:00:46] [%emt 00:00:20]} 36.Bxb8 {[%clk 00:08:34] [%emt
00:00:53]} 36...Kxb8 {[%clk 00:01:15] [%emt 00:00:02]} 37.f4 {[%clk 00:08:52]
[%emt 00:00:12]} 37...Bxa4 {[%clk 00:00:38] [%emt 00:01:07]} 38.f5 {[%clk
00:09:14] [%emt 00:00:09]} 38...Rg8 {[%clk 00:00:39] [%emt 00:00:29]} 39.Ne3 
{[%clk 00:09:22] [%emt 00:00:22]} 39...Rd8 {[%clk 00:00:55] [%emt 00:00:14]} 
40.Na3 {[%clk 00:01:51] [%emt 00:08:01]} 40...Bb3 {[%clk 00:00:58] [%emt
00:00:27]} 41.Kf2 {[%clk 00:45:53] [%emt 00:06:28]} 41...Kc7 {[%clk 00:40:53]
[%emt 00:10:35]} 42.Kf3 {[%clk 00:44:37] [%emt 00:01:46]} 42...Kc6 {[%clk
00:36:24] [%emt 00:04:59]} 43.g4 {[%clk 00:40:25] [%emt 00:04:42]} 43...Rd2 
{[%clk 00:28:58] [%emt 00:07:56]} 44.f6 {[%clk 00:33:16] [%emt 00:07:39]} 
44...Kd7 {[%clk 00:19:44] [%emt 00:09:43]} 45.Re1 {[%clk 00:29:00] [%emt
00:04:47]} 45...Rxh2 {[%clk 00:18:41] [%emt 00:01:33]} 46.c4 {[%clk 00:23:52]
[%emt 00:05:38]} 46...Ra2 {[%clk 00:15:53] [%emt 00:03:18]} 47.Nb5 {[%clk
00:14:41] [%emt 00:09:41]} 47...Nxc4 {[%clk 00:07:34] [%emt 00:08:48]} 48.Nxc4 
{[%clk 00:15:06] [%emt 00:00:06]} 48...Bxc4 {[%clk 00:07:54] [%emt 00:00:11]} 
49.Re7+ {[%clk 00:15:32] [%emt 00:00:04]} 49...Kc6 {[%clk 00:06:46] [%emt
00:01:38]} 50.Na7+ {[%clk 00:15:43] [%emt 00:00:19]} 50...Kd6 {[%clk 00:05:26]
[%emt 00:01:50]} 51.Nc8+ {[%clk 00:09:32] [%emt 00:06:40]} 51...Kc6 {[%clk
00:05:55] [%emt 00:00:01]} 52.Rxh7 {[%clk 00:09:45] [%emt 00:00:17]} 52...Ra8 
{[%clk 00:03:43] [%emt 00:02:43]} 53.Ne7+ {[%clk 00:04:49] [%emt 00:05:26]} 
53...Kd6 {[%clk 00:04:12] [%emt 00:00:01]} 54.Kf4 {[%clk 00:03:37] [%emt
00:01:41]} 54...b5 {[%clk 00:03:54] [%emt 00:00:49]} 55.Nf5+ {[%clk 00:03:15]
[%emt 00:00:52]} 55...Kc6 {[%clk 00:03:14] [%emt 00:01:11]} 56.g5 {[%clk
00:02:46] [%emt 00:00:59]} 56...b4 {[%clk 00:01:51] [%emt 00:01:53]} 57.g6 
{[%clk 00:03:11] [%emt 00:00:04]} 57...b3 {[%clk 00:01:40] [%emt 00:00:41]} 
58.f7 {[%clk 00:03:39] [%emt 00:00:02]} 58...b2 {[%clk 00:01:27] [%emt
00:00:44]} 59.Rh1 {[%clk 00:04:05] [%emt 00:00:03]} 59...Ba2 {[%clk 00:00:50]
[%emt 00:01:07]} 60.Ke5 {[%clk 00:04:06] [%emt 00:00:28]} 60...Kb5 {[%clk
00:00:38] [%emt 00:00:42]} 61.Nd6+ {[%clk 00:00:59] [%emt 00:03:37]} 61...Kb4 
{[%clk 00:11:37] [%emt 00:04:32]} 62.Ne8 {[%clk 00:15:27] [%emt 00:01:01]} 
62...Bxf7 {[%clk 00:04:55] [%emt 00:07:12]} 63.gxf7 {[%clk 00:15:48] [%emt
00:00:09]} 63...Ra1 {[%clk 00:05:23] [%emt 00:00:03]} 64.Rh4+ {[%clk 00:12:19]
[%emt 00:03:58]} 64...Ka5 {[%clk 00:05:52] [%emt 00:00:01]} 65.f8=Q {[%clk
00:12:37] [%emt 00:00:12]} 65...b1=Q {[%clk 00:04:55] [%emt 00:01:27]} 66.Nd6 
{[%clk 00:11:47] [%emt 00:01:20]} 66...Qb2+ {[%clk 00:02:04] [%emt 00:03:21]} 
67.Ke6 {[%clk 00:11:56] [%emt 00:00:20]} 67...Qe2+ {[%clk 00:00:34] [%emt
00:02:00]} 68.Kd7 {[%clk 00:11:49]} 1-0

[Event "FIDE Grand Swiss 2023"]
[Site "Villa Marina, Douglas, Isle of Man"]
[Date "2023.10.29"]
[Round "5.8"]
[White "Zhalmakhanov, Ramazan"]
[Black "Sevian, Samuel"]
[Result "1/2-1/2"]
[WhiteElo "2447"]
[BlackElo "2698"]
[EventDate "2023.10.25"]
[ECO "B48"]
[PlyCount "69"]
[BlackFideId "2040506"]
[TimeControl "40/100 + 20/50 + 15 + 30s/move"]
[WhiteFideId "13706357"]

1.e4 {[%clk 01:40:54] [%emt 00:00:04]} 1...c5 {[%clk 01:40:53] [%emt 00:00:09]} 
2.Nf3 {[%clk 01:41:06] [%emt 00:00:17]} 2...e6 {[%clk 01:41:18] [%emt 00:00:06]} 
3.d4 {[%clk 01:41:22] [%emt 00:00:14]} 3...cxd4 {[%clk 01:41:44] [%emt
00:00:05]} 4.Nxd4 {[%clk 01:41:30] [%emt 00:00:21]} 4...Nc6 {[%clk 01:42:08]
[%emt 00:00:07]} 5.Nc3 {[%clk 01:41:40] [%emt 00:00:18]} 5...Qc7 {[%clk
01:41:55] [%emt 00:00:44]} 6.Be3 {[%clk 01:41:43] [%emt 00:00:27]} 6...a6 
{[%clk 01:42:01] [%emt 00:00:24]} 7.Bd3 {[%clk 01:41:54] [%emt 00:00:19]} 
7...Nf6 {[%clk 01:41:26] [%emt 00:01:05]} 8.Qe2 {[%clk 01:41:42] [%emt
00:00:42]} 8...b5 {[%clk 01:25:56] [%emt 00:16:00]} 9.Nxc6 {[%clk 01:41:05]
[%emt 00:01:06]} 9...Qxc6 {[%clk 01:10:21] [%emt 00:16:07]} 10.e5 {[%clk
01:40:21] [%emt 00:01:13]} 10...b4 {[%clk 01:01:17] [%emt 00:09:34]} 11.exf6 
{[%clk 01:38:59] [%emt 00:01:51]} 11...bxc3 {[%clk 01:01:11] [%emt 00:00:37]} 
12.fxg7 {[%clk 01:39:09] [%emt 00:00:19]} 12...Bxg7 {[%clk 01:01:37] [%emt
00:00:05]} 13.b3 {[%clk 01:39:27] [%emt 00:00:12]} 13...Bb7 {[%clk 01:01:43]
[%emt 00:00:23]} 14.f3 {[%clk 01:29:47] [%emt 00:10:09]} 14...d5 {[%clk
00:56:32] [%emt 00:05:43]} 15.O-O {[%clk 01:25:04] [%emt 00:05:13]} 15...O-O 
{[%clk 00:51:14] [%emt 00:05:48]} 16.b4 {[%clk 01:11:32] [%emt 00:14:02]} 
16...e5 {[%clk 00:47:26] [%emt 00:04:18]} 17.Bc5 {[%clk 01:07:11] [%emt
00:04:51]} 17...Rfe8 {[%clk 00:38:16] [%emt 00:09:40]} 18.Qf2 {[%clk 01:01:34]
[%emt 00:06:07]} 18...Re6 {[%clk 00:36:07] [%emt 00:02:39]} 19.a4 {[%clk
00:52:45] [%emt 00:09:19]} 19...Qc7 {[%clk 00:36:30] [%emt 00:00:07]} 20.Rad1 
{[%clk 00:47:59] [%emt 00:05:15]} 20...Rae8 {[%clk 00:31:35] [%emt 00:05:26]} 
21.Rfe1 {[%clk 00:42:16] [%emt 00:06:13]} 21...a5 {[%clk 00:22:23] [%emt
00:09:42]} 22.bxa5 {[%clk 00:36:05] [%emt 00:06:42]} 22...Qxa5 {[%clk 00:22:38]
[%emt 00:00:16]} 23.Bb5 {[%clk 00:36:25] [%emt 00:00:09]} 23...Bc6 {[%clk
00:21:40] [%emt 00:01:28]} 24.Bb6 {[%clk 00:30:30] [%emt 00:06:25]} 24...Qa8 
{[%clk 00:21:40] [%emt 00:00:30]} 25.Bxc6 {[%clk 00:27:37] [%emt 00:03:23]} 
25...Qxc6 {[%clk 00:21:03] [%emt 00:01:07]} 26.a5 {[%clk 00:28:02] [%emt
00:00:05]} 26...Bh6 {[%clk 00:18:19] [%emt 00:03:14]} 27.Be3 {[%clk 00:22:11]
[%emt 00:06:21]} 27...Bf8 {[%clk 00:18:41] [%emt 00:00:09]} 28.Bb6 {[%clk
00:21:16] [%emt 00:01:24]} 28...Bh6 {[%clk 00:17:33] [%emt 00:01:38]} 29.Be3 
{[%clk 00:21:40] [%emt 00:00:06]} 29...Bf8 {[%clk 00:16:50] [%emt 00:01:13]} 
30.Bb6 {[%clk 00:22:07] [%emt 00:00:02]} 30...Qc4 {[%clk 00:14:38] [%emt
00:02:43]} 31.Kh1 {[%clk 00:18:33] [%emt 00:04:04]} 31...Bh6 {[%clk 00:14:22]
[%emt 00:00:46]} 32.Be3 {[%clk 00:17:21] [%emt 00:01:42]} 32...Bf8 {[%clk
00:14:46] [%emt 00:00:06]} 33.Bb6 {[%clk 00:17:06] [%emt 00:00:45]} 33...Bh6 
{[%clk 00:12:27] [%emt 00:02:49]} 34.Be3 {[%clk 00:17:17] [%emt 00:00:19]} 
34...Bg7 {[%clk 00:12:48] [%emt 00:00:09]} 35.Bb6 {[%clk 00:16:27] [%emt
00:01:20]} 1/2-1/2

[Event "FIDE Grand Swiss 2023"]
[Site "Villa Marina, Douglas, Isle of Man"]
[Date "2023.10.29"]
[Round "5.9"]
[White "L'ami, Erwin"]
[Black "Artemiev, Vladislav"]
[Result "1/2-1/2"]
[WhiteElo "2627"]
[BlackElo "2697"]
[EventDate "2023.10.25"]
[ECO "D37"]
[PlyCount "34"]
[BlackFideId "24101605"]
[TimeControl "40/100 + 20/50 + 15 + 30s/move"]
[WhiteFideId "1007998"]

1.d4 {[%clk 01:40:56] [%emt 00:00:02]} 1...Nf6 {[%clk 01:40:22] [%emt 00:00:39]} 
2.c4 {[%clk 01:41:16] [%emt 00:00:09]} 2...e6 {[%clk 01:40:43] [%emt 00:00:10]} 
3.Nf3 {[%clk 01:41:31] [%emt 00:00:15]} 3...d5 {[%clk 01:31:20] [%emt 00:09:54]} 
4.Nc3 {[%clk 01:41:41] [%emt 00:00:19]} 4...Be7 {[%clk 01:23:17] [%emt
00:08:34]} 5.Bg5 {[%clk 01:40:52] [%emt 00:01:18]} 5...h6 {[%clk 01:20:33] [%emt
00:03:15]} 6.Bh4 {[%clk 01:40:43] [%emt 00:00:38]} 6...dxc4 {[%clk 01:14:38]
[%emt 00:06:26]} 7.e3 {[%clk 01:38:09] [%emt 00:03:03]} 7...c5 {[%clk 01:13:37]
[%emt 00:01:31]} 8.Bxc4 {[%clk 01:32:51] [%emt 00:05:48]} 8...cxd4 {[%clk
01:11:54] [%emt 00:02:14]} 9.Nxd4 {[%clk 01:30:35] [%emt 00:02:46]} 9...Bd7 
{[%clk 01:05:24] [%emt 00:07:00]} 10.O-O {[%clk 01:28:39] [%emt 00:02:26]} 
10...O-O {[%clk 01:01:32] [%emt 00:04:22]} 11.Rc1 {[%clk 01:22:01] [%emt
00:07:07]} 11...Nc6 {[%clk 01:00:03] [%emt 00:02:00]} 12.Nb3 {[%clk 01:20:57]
[%emt 00:01:34]} 12...Rc8 {[%clk 00:47:43] [%emt 00:12:51]} 13.Be2 {[%clk
01:19:28] [%emt 00:01:57]} 13...Ne5 {[%clk 00:39:08] [%emt 00:09:06]} 14.Qd4 
{[%clk 01:10:26] [%emt 00:09:32]} 14...Nc6 {[%clk 00:35:52] [%emt 00:03:46]} 
15.Qd1 {[%clk 01:01:59] [%emt 00:08:57]} 15...Ne5 {[%clk 00:33:03] [%emt
00:03:19]} 16.Qd4 {[%clk 01:00:11] [%emt 00:02:17]} 16...Nc6 {[%clk 00:33:14]
[%emt 00:00:19]} 17.Qd1 {[%clk 00:59:20] [%emt 00:01:21]} 17...Ne5 1/2-1/2

[Event "FIDE Grand Swiss 2023"]
[Site "Villa Marina, Douglas, Isle of Man"]
[Date "2023.10.29"]
[Round "5.10"]
[White "Giri, Anish"]
[Black "Korobov, Anton"]
[Result "1/2-1/2"]
[WhiteElo "2760"]
[BlackElo "2658"]
[EventDate "2023.10.25"]
[ECO "D17"]
[PlyCount "60"]
[BlackFideId "14105730"]
[TimeControl "40/100 + 20/50 + 15 + 30s/move"]
[WhiteFideId "24116068"]

1.d4 {[%clk 01:40:56] [%emt 00:00:03]} 1...d5 {[%clk 01:40:46] [%emt 00:00:14]} 
2.c4 {[%clk 01:41:18] [%emt 00:00:09]} 2...c6 {[%clk 01:41:12] [%emt 00:00:05]} 
3.Nf3 {[%clk 01:41:43] [%emt 00:00:04]} 3...Nf6 {[%clk 01:41:36] [%emt
00:00:05]} 4.Nc3 {[%clk 01:41:30] [%emt 00:00:44]} 4...dxc4 {[%clk 01:41:55]
[%emt 00:00:11]} 5.a4 {[%clk 01:41:14] [%emt 00:00:46]} 5...Bf5 {[%clk 01:42:18]
[%emt 00:00:06]} 6.Ne5 {[%clk 01:41:20] [%emt 00:00:25]} 6...Nbd7 {[%clk
01:42:30] [%emt 00:00:18]} 7.Nxc4 {[%clk 01:41:33] [%emt 00:00:18]} 7...Nb6 
{[%clk 01:42:54] [%emt 00:00:05]} 8.Ne3 {[%clk 01:40:16] [%emt 00:01:47]} 
8...Bg6 {[%clk 01:31:46] [%emt 00:11:39]} 9.a5 {[%clk 01:39:43] [%emt 00:01:03]} 
9...Nbd7 {[%clk 01:28:11] [%emt 00:04:06]} 10.g3 {[%clk 01:33:37] [%emt
00:06:36]} 10...e6 {[%clk 01:21:11] [%emt 00:07:29]} 11.Bg2 {[%clk 01:27:52]
[%emt 00:06:15]} 11...Rc8 {[%clk 01:14:40] [%emt 00:07:02]} 12.O-O {[%clk
01:15:13] [%emt 00:13:08]} 12...Be7 {[%clk 01:13:34] [%emt 00:01:36]} 13.Qb3 
{[%clk 00:41:13] [%emt 00:34:30]} 13...b5 {[%clk 01:12:38] [%emt 00:01:26]} 
14.axb6 {[%clk 00:41:39] [%emt 00:00:05]} 14...axb6 {[%clk 01:13:03] [%emt
00:00:04]} 15.Bd2 {[%clk 00:41:40] [%emt 00:00:29]} 15...O-O {[%clk 01:12:03]
[%emt 00:01:30]} 16.Rfd1 {[%clk 00:35:11] [%emt 00:07:00]} 16...b5 {[%clk
01:06:16] [%emt 00:06:16]} 17.Na2 {[%clk 00:32:21] [%emt 00:03:20]} 17...Be4 
{[%clk 00:57:34] [%emt 00:09:11]} 18.Bb4 {[%clk 00:29:15] [%emt 00:03:37]} 
18...Bxg2 {[%clk 00:56:25] [%emt 00:01:39]} 19.Kxg2 {[%clk 00:28:34] [%emt
00:01:11]} 19...Bxb4 {[%clk 00:50:36] [%emt 00:06:18]} 20.Nxb4 {[%clk 00:28:43]
[%emt 00:00:21]} 20...c5 {[%clk 00:50:30] [%emt 00:00:36]} 21.dxc5 {[%clk
00:28:57] [%emt 00:00:16]} 21...Nxc5 {[%clk 00:50:55] [%emt 00:00:05]} 22.Rxd8 
{[%clk 00:26:49] [%emt 00:02:38]} 22...Nxb3 {[%clk 00:50:45] [%emt 00:00:40]} 
23.Rxc8 {[%clk 00:27:16] [%emt 00:00:04]} 23...Rxc8 {[%clk 00:51:03] [%emt
00:00:11]} 24.Rd1 {[%clk 00:26:52] [%emt 00:00:55]} 24...Kf8 {[%clk 00:49:25]
[%emt 00:02:07]} 25.f3 {[%clk 00:27:04] [%emt 00:00:18]} 25...Ke7 {[%clk
00:48:26] [%emt 00:01:29]} 26.Rd3 {[%clk 00:26:55] [%emt 00:00:40]} 26...Nc1 
{[%clk 00:48:43] [%emt 00:00:13]} 27.Rd2 {[%clk 00:27:24] [%emt 00:00:02]} 
27...Nb3 {[%clk 00:49:06] [%emt 00:00:06]} 28.Rd3 {[%clk 00:27:52] [%emt
00:00:01]} 28...Nc1 {[%clk 00:49:30] [%emt 00:00:06]} 29.Rd2 {[%clk 00:28:21]} 
29...Nb3 {[%clk 00:49:54] [%emt 00:00:07]} 30.Rd3 {[%clk 00:28:50] [%emt
00:00:02]} 30...Nc1 {[%clk 00:50:18] [%emt 00:00:06]} 1/2-1/2